[Event "Titled Tuesday Blitz May 30 Early 2023"]
[White "Trifan, Andrei Ioan"]
[Black "Martinez Ramirez, Lennis"]
[WhiteFideId "12967068"]
[BlackFideId "3509079"]
[WhiteElo "2208"]
[BlackElo "2410"]
[Result "1-0"]
[Round "07"]
[TimeControl "180+2"]
[Date "2023.05.30"]
[WhiteClock "0:00:26"]
[BlackClock "0:00:00"]

1. e4 {[%clk 0:02:59]}  c5 {[%clk 0:02:59]} 2. Nf3 {[%clk 0:02:59]}  Nc6 {[%clk 0:03:00]} 3. d4 {[%clk 0:02:54]}  cxd4 {[%clk 0:03:01]} 4. Nxd4 {[%clk 0:02:55]}  Nf6 {[%clk 0:03:01]} 5. Nc3 {[%clk 0:02:54]}  e5 {[%clk 0:03:01]} 6. Ndb5 {[%clk 0:02:54]}  d6 {[%clk 0:03:01]} 7. Bg5 {[%clk 0:02:53]}  a6 {[%clk 0:03:02]} 8. Na3 {[%clk 0:02:53]}  b5 {[%clk 0:03:01]} 9. Nd5 {[%clk 0:02:54]}  Be7 {[%clk 0:03:02]} 10. Bxf6 {[%clk 0:02:54]}  Bxf6 {[%clk 0:03:02]} 11. c4 {[%clk 0:02:55]}  b4 {[%clk 0:02:55]} 12. Nc2 {[%clk 0:02:55]}  O-O {[%clk 0:02:54]} 13. g3 {[%clk 0:02:54]}  Bg5 {[%clk 0:02:48]} 14. Bg2 {[%clk 0:02:53]}  a5 {[%clk 0:02:42]} 15. O-O {[%clk 0:02:51]}  Be6 {[%clk 0:02:20]} 16. Qd3 {[%clk 0:02:49]}  g6 {[%clk 0:02:01]} 17. Rad1 {[%clk 0:02:44]}  Rb8 {[%clk 0:01:11]} 18. f4 {[%clk 0:02:39]}  Be7 {[%clk 0:00:58]} 19. f5 {[%clk 0:02:17]}  Bxd5 {[%clk 0:00:58]} 20. exd5 {[%clk 0:02:18]}  Nd4 {[%clk 0:00:44]} 21. Nxd4 {[%clk 0:02:10]}  exd4 {[%clk 0:00:45]} 22. Be4 {[%clk 0:01:59]}  Kg7 {[%clk 0:00:26]} 23. Rf3 {[%clk 0:01:47]}  Bf6 {[%clk 0:00:27]} 24. Rdf1 {[%clk 0:01:46]}  Be5 {[%clk 0:00:27]} 25. f6+ {[%clk 0:01:28]}  Kh8 {[%clk 0:00:26]} 26. Qd2 {[%clk 0:01:15]}  Rg8 {[%clk 0:00:17]} 27. Qh6 {[%clk 0:01:09]}  Qf8 {[%clk 0:00:14]} 28. Qh4 {[%clk 0:01:07]}  h5 {[%clk 0:00:14]} 29. Qg5 {[%clk 0:00:54]}  Kh7 {[%clk 0:00:11]} 30. Qxh5+ {[%clk 0:00:32]}  Qh6 {[%clk 0:00:11]} 31. Qg4 {[%clk 0:00:33]}  Rh8 {[%clk 0:00:10]} 32. Kg2 {[%clk 0:00:31]}  b3 {[%clk 0:00:10]} 33. a3 {[%clk 0:00:31]}  a4 {[%clk 0:00:10]} 34. Bd3 {[%clk 0:00:31]}  Rbe8 {[%clk 0:00:08]} 35. R1f2 {[%clk 0:00:30]}  Ref8 {[%clk 0:00:08]} 36. h4 {[%clk 0:00:31]}  Qc1 {[%clk 0:00:08]} 37. h5 {[%clk 0:00:28]}  Kg8 {[%clk 0:00:00]} 38. Bxg6 {[%clk 0:00:26]} 1-0


[Site "https://www.chess.com"]

[Event "Titled Tuesday Blitz May 30 Early 2023"]
[White "Ehlvest, Jaan"]
[Black "FunnyDuck66"]
[WhiteFideId "4500016"]
[WhiteElo "2442"]
[BlackElo "2350"]
[Result "0-1"]
[Round "07"]
[TimeControl "180+2"]
[Date "2023.05.30"]
[WhiteClock "0:00:00"]
[BlackClock "0:00:08"]

1. e4 {[%clk 0:02:54]}  c6 {[%clk 0:02:55]} 2. d4 {[%clk 0:02:53]}  d5 {[%clk 0:02:55]} 3. exd5 {[%clk 0:02:53]}  cxd5 {[%clk 0:02:56]} 4. Bd3 {[%clk 0:02:53]}  Nc6 {[%clk 0:02:56]} 5. c3 {[%clk 0:02:53]}  Nf6 {[%clk 0:02:57]} 6. h3 {[%clk 0:02:53]}  g6 {[%clk 0:02:55]} 7. Nf3 {[%clk 0:02:53]}  Bf5 {[%clk 0:02:55]} 8. Bb5 {[%clk 0:02:52]}  Bd7 {[%clk 0:02:51]} 9. O-O {[%clk 0:02:50]}  e6 {[%clk 0:02:49]} 10. Bf4 {[%clk 0:02:46]}  Be7 {[%clk 0:02:44]} 11. Nbd2 {[%clk 0:02:45]}  O-O {[%clk 0:02:41]} 12. Re1 {[%clk 0:02:45]}  a6 {[%clk 0:02:27]} 13. Bxc6 {[%clk 0:02:43]}  bxc6 {[%clk 0:02:27]} 14. b4 {[%clk 0:02:39]}  a5 {[%clk 0:02:13]} 15. a3 {[%clk 0:02:39]}  axb4 {[%clk 0:02:13]} 16. cxb4 {[%clk 0:02:38]}  Bc8 {[%clk 0:01:59]} 17. Ne5 {[%clk 0:02:38]}  Qb6 {[%clk 0:01:56]} 18. Bg5 {[%clk 0:02:34]}  Kg7 {[%clk 0:01:41]} 19. Nb3 {[%clk 0:02:33]}  h6 {[%clk 0:01:39]} 20. Bh4 {[%clk 0:02:20]}  g5 {[%clk 0:01:32]} 21. Bg3 {[%clk 0:02:20]}  Ne4 {[%clk 0:01:32]} 22. Bh2 {[%clk 0:02:20]}  f6 {[%clk 0:01:10]} 23. Nd3 {[%clk 0:02:16]}  Qb5 {[%clk 0:01:03]} 24. f3 {[%clk 0:02:08]}  Nc3 {[%clk 0:00:39]} 25. Qc2 {[%clk 0:02:04]}  Qc4 {[%clk 0:00:38]} 26. Rec1 {[%clk 0:01:39]}  Ba6 {[%clk 0:00:30]} 27. Qxc3 {[%clk 0:00:58]}  Qxd3 {[%clk 0:00:30]} 28. Qxd3 {[%clk 0:00:56]}  Bxd3 {[%clk 0:00:30]} 29. Rxc6 {[%clk 0:00:56]}  Bc4 {[%clk 0:00:28]} 30. Nc5 {[%clk 0:00:53]}  Bxc5 {[%clk 0:00:28]} 31. Rxc5 {[%clk 0:00:46]}  Ra4 {[%clk 0:00:25]} 32. Bc7 {[%clk 0:00:44]}  Rfa8 {[%clk 0:00:21]} 33. Ba5 {[%clk 0:00:42]}  Kg6 {[%clk 0:00:19]} 34. Kf2 {[%clk 0:00:41]}  h5 {[%clk 0:00:19]} 35. Rc6 {[%clk 0:00:40]}  Ra6 {[%clk 0:00:16]} 36. Rxa6 {[%clk 0:00:22]}  Bxa6 {[%clk 0:00:17]} 37. Ke3 {[%clk 0:00:22]}  Kf5 {[%clk 0:00:16]} 38. Bc7 {[%clk 0:00:17]}  h4 {[%clk 0:00:15]} 39. Kd2 {[%clk 0:00:16]}  Bc4 {[%clk 0:00:16]} 40. Kc3 {[%clk 0:00:16]}  Bb5 {[%clk 0:00:16]} 41. Kb3 {[%clk 0:00:15]}  Ra7 {[%clk 0:00:12]} 42. Bd6 {[%clk 0:00:13]}  Ba4+ {[%clk 0:00:11]} 43. Kc3 {[%clk 0:00:13]}  Ra6 {[%clk 0:00:12]} 44. Bc5 {[%clk 0:00:12]}  Kf4 {[%clk 0:00:11]} 45. Re1 {[%clk 0:00:10]}  Bb5 {[%clk 0:00:10]} 46. Kb3 {[%clk 0:00:08]}  Kg3 {[%clk 0:00:11]} 47. Re3 {[%clk 0:00:04]}  Kxg2 {[%clk 0:00:10]} 48. Be7 {[%clk 0:00:04]}  Kf2 {[%clk 0:00:10]} 49. Rc3 {[%clk 0:00:04]}  Bc4+ {[%clk 0:00:10]} 50. Kb2 {[%clk 0:00:03]}  e5 {[%clk 0:00:10]} 51. Bxf6 {[%clk 0:00:03]}  Rxf6 {[%clk 0:00:07]} 52. dxe5 {[%clk 0:00:00]}  Re6 {[%clk 0:00:08]} 0-1


[Site "https://www.chess.com"]

[Event "Titled Tuesday Blitz May 30 Early 2023"]
[White "Korchmar, Vasiliy"]
[Black "Nugumanov, Bakhtiyar"]
[WhiteFideId "24131750"]
[BlackFideId "13701797"]
[WhiteElo "2370"]
[BlackElo "2209"]
[Result "1/2-1/2"]
[Round "07"]
[TimeControl "180+2"]
[Date "2023.05.30"]
[WhiteClock "0:00:05"]
[BlackClock "0:00:16"]

1. e4 {[%clk 0:03:00]}  e6 {[%clk 0:02:59]} 2. d4 {[%clk 0:03:00]}  d5 {[%clk 0:02:50]} 3. e5 {[%clk 0:03:01]}  c5 {[%clk 0:02:50]} 4. c3 {[%clk 0:03:01]}  Nc6 {[%clk 0:02:50]} 5. Nf3 {[%clk 0:03:02]}  Bd7 {[%clk 0:02:48]} 6. Be2 {[%clk 0:03:02]}  Nge7 {[%clk 0:02:29]} 7. Na3 {[%clk 0:03:00]}  cxd4 {[%clk 0:02:26]} 8. cxd4 {[%clk 0:03:01]}  Nf5 {[%clk 0:02:26]} 9. Nc2 {[%clk 0:03:01]}  Qb6 {[%clk 0:02:26]} 10. O-O {[%clk 0:03:00]}  Rc8 {[%clk 0:02:24]} 11. Bd3 {[%clk 0:02:55]}  Nb4 {[%clk 0:02:20]} 12. Bxf5 {[%clk 0:02:51]}  exf5 {[%clk 0:02:15]} 13. Nxb4 {[%clk 0:02:31]}  Bxb4 {[%clk 0:02:11]} 14. Qb3 {[%clk 0:01:53]}  Be6 {[%clk 0:02:08]} 15. Bd2 {[%clk 0:01:49]}  Bxd2 {[%clk 0:01:58]} 16. Qxb6 {[%clk 0:01:49]}  axb6 {[%clk 0:01:59]} 17. Nxd2 {[%clk 0:01:50]}  Rc2 {[%clk 0:01:59]} 18. Nf3 {[%clk 0:01:30]}  Rxb2 {[%clk 0:01:58]} 19. Rfb1 {[%clk 0:01:30]}  Rxb1+ {[%clk 0:01:56]} 20. Rxb1 {[%clk 0:01:31]}  Kd7 {[%clk 0:01:54]} 21. Rxb6 {[%clk 0:01:31]}  Kc7 {[%clk 0:01:55]} 22. Rb2 {[%clk 0:01:30]}  Ra8 {[%clk 0:01:55]} 23. g3 {[%clk 0:01:20]}  h6 {[%clk 0:01:54]} 24. h4 {[%clk 0:01:20]}  Ra3 {[%clk 0:01:51]} 25. Kg2 {[%clk 0:01:12]}  f4 {[%clk 0:01:39]} 26. gxf4 {[%clk 0:01:11]}  Bg4 {[%clk 0:01:39]} 27. Nd2 {[%clk 0:01:09]}  Rh3 {[%clk 0:01:29]} 28. f3 {[%clk 0:00:39]}  Bd7 {[%clk 0:01:17]} 29. Rc2+ {[%clk 0:00:39]}  Kd8 {[%clk 0:01:11]} 30. Rc5 {[%clk 0:00:38]}  Rxh4 {[%clk 0:01:08]} 31. Rxd5 {[%clk 0:00:35]}  Rxf4 {[%clk 0:01:06]} 32. Kg3 {[%clk 0:00:33]}  Rf5 {[%clk 0:01:04]} 33. Ne4 {[%clk 0:00:28]}  Ke7 {[%clk 0:00:55]} 34. Rc5 {[%clk 0:00:20]}  Bc6 {[%clk 0:00:53]} 35. d5 {[%clk 0:00:21]}  Bd7 {[%clk 0:00:26]} 36. d6+ {[%clk 0:00:18]}  Kd8 {[%clk 0:00:24]} 37. f4 {[%clk 0:00:15]}  g5 {[%clk 0:00:21]} 38. fxg5 {[%clk 0:00:14]}  hxg5 {[%clk 0:00:22]} 39. Rc7 {[%clk 0:00:03]}  Bc6 {[%clk 0:00:17]} 40. Nc5 {[%clk 0:00:02]}  Rxe5 {[%clk 0:00:18]} 41. Nxb7+ {[%clk 0:00:02]}  Bxb7 {[%clk 0:00:18]} 42. Rxb7 {[%clk 0:00:03]}  f5 {[%clk 0:00:15]} 43. a4 {[%clk 0:00:03]}  Rd5 {[%clk 0:00:15]} 44. Rg7 {[%clk 0:00:02]}  Rxd6 {[%clk 0:00:14]} 45. Rxg5 {[%clk 0:00:02]}  Ra6 {[%clk 0:00:14]} 46. Kf4 {[%clk 0:00:03]}  Rxa4+ {[%clk 0:00:15]} 47. Kxf5 {[%clk 0:00:04]}  Ra5+ {[%clk 0:00:15]} 48. Kf6 {[%clk 0:00:04]}  Rxg5 {[%clk 0:00:16]} 49. Kxg5 {[%clk 0:00:05]} 1/2-1/2


[Site "https://www.chess.com"]

[Event "Titled Tuesday Blitz May 30 Early 2023"]
[White "Melikyan, Gnel"]
[Black "Dilmukhametov, Artur"]
[WhiteFideId "54109990"]
[BlackFideId "24179922"]
[WhiteElo "2138"]
[BlackElo "2242"]
[Result "1-0"]
[Round "07"]
[TimeControl "180+2"]
[Date "2023.05.30"]
[WhiteClock "0:00:09"]
[BlackClock "0:00:00"]

1. d4 {[%clk 0:02:59]}  Nf6 {[%clk 0:03:00]} 2. Bg5 {[%clk 0:02:55]}  g6 {[%clk 0:02:56]} 3. Nd2 {[%clk 0:02:46]}  Bg7 {[%clk 0:02:56]} 4. e4 {[%clk 0:02:46]}  d6 {[%clk 0:02:56]} 5. c3 {[%clk 0:02:45]}  Nbd7 {[%clk 0:02:55]} 6. Bc4 {[%clk 0:02:43]}  O-O {[%clk 0:02:55]} 7. Ne2 {[%clk 0:02:43]}  h6 {[%clk 0:02:54]} 8. Bh4 {[%clk 0:02:43]}  e5 {[%clk 0:02:51]} 9. dxe5 {[%clk 0:02:42]}  Nxe5 {[%clk 0:02:52]} 10. O-O {[%clk 0:02:40]}  Nxc4 {[%clk 0:02:52]} 11. Nxc4 {[%clk 0:02:28]}  g5 {[%clk 0:02:52]} 12. e5 {[%clk 0:02:26]}  gxh4 {[%clk 0:02:51]} 13. exf6 {[%clk 0:02:26]}  Qxf6 {[%clk 0:02:51]} 14. Ne3 {[%clk 0:02:24]}  h3 {[%clk 0:02:47]} 15. g3 {[%clk 0:02:23]}  Re8 {[%clk 0:02:45]} 16. Nf4 {[%clk 0:02:21]}  c6 {[%clk 0:02:36]} 17. Re1 {[%clk 0:02:20]}  Bf5 {[%clk 0:02:23]} 18. Qh5 {[%clk 0:02:09]}  Bg6 {[%clk 0:02:06]} 19. Qxh3 {[%clk 0:02:08]}  d5 {[%clk 0:01:59]} 20. Rad1 {[%clk 0:02:07]}  Rad8 {[%clk 0:01:58]} 21. Qg4 {[%clk 0:02:03]}  d4 {[%clk 0:01:50]} 22. cxd4 {[%clk 0:01:55]}  Rxd4 {[%clk 0:01:47]} 23. Rxd4 {[%clk 0:01:49]}  Qxd4 {[%clk 0:01:46]} 24. Rd1 {[%clk 0:01:49]}  Qxb2 {[%clk 0:01:33]} 25. Nxg6 {[%clk 0:01:48]}  fxg6 {[%clk 0:01:33]} 26. Qxg6 {[%clk 0:01:46]}  Rf8 {[%clk 0:01:29]} 27. Nf5 {[%clk 0:01:36]}  Qf6 {[%clk 0:01:11]} 28. Qxf6 {[%clk 0:01:32]}  Rxf6 {[%clk 0:01:09]} 29. Rd8+ {[%clk 0:01:32]}  Kh7 {[%clk 0:01:06]} 30. g4 {[%clk 0:01:30]}  h5 {[%clk 0:00:54]} 31. Rd7 {[%clk 0:01:26]}  Rg6 {[%clk 0:00:54]} 32. h3 {[%clk 0:01:17]}  hxg4 {[%clk 0:00:53]} 33. h4 {[%clk 0:01:17]}  b5 {[%clk 0:00:37]} 34. Rxa7 {[%clk 0:01:12]}  Kh8 {[%clk 0:00:31]} 35. Ra8+ {[%clk 0:01:06]}  Kh7 {[%clk 0:00:30]} 36. Rc8 {[%clk 0:01:05]}  b4 {[%clk 0:00:23]} 37. Rc7 {[%clk 0:00:59]}  Kh8 {[%clk 0:00:21]} 38. Nxg7 {[%clk 0:00:46]}  Rxg7 {[%clk 0:00:21]} 39. Rxc6 {[%clk 0:00:45]}  Ra7 {[%clk 0:00:22]} 40. Rc4 {[%clk 0:00:44]}  Rxa2 {[%clk 0:00:21]} 41. Rxb4 {[%clk 0:00:44]}  Kh7 {[%clk 0:00:21]} 42. Rxg4 {[%clk 0:00:44]}  Kh6 {[%clk 0:00:21]} 43. Kg2 {[%clk 0:00:41]}  Kh5 {[%clk 0:00:21]} 44. Kg3 {[%clk 0:00:41]}  Ra1 {[%clk 0:00:18]} 45. Rg5+ {[%clk 0:00:40]}  Kh6 {[%clk 0:00:19]} 46. Rb5 {[%clk 0:00:36]}  Rg1+ {[%clk 0:00:19]} 47. Kh3 {[%clk 0:00:33]}  Rh1+ {[%clk 0:00:18]} 48. Kg3 {[%clk 0:00:31]}  Rg1+ {[%clk 0:00:18]} 49. Kf3 {[%clk 0:00:30]}  Rh1 {[%clk 0:00:18]} 50. h5 {[%clk 0:00:31]}  Rg1 {[%clk 0:00:13]} 51. Kf4 {[%clk 0:00:29]}  Rg8 {[%clk 0:00:11]} 52. Rf5 {[%clk 0:00:28]}  Rg1 {[%clk 0:00:10]} 53. f3 {[%clk 0:00:28]}  Rg8 {[%clk 0:00:10]} 54. Ke4 {[%clk 0:00:21]}  Rg1 {[%clk 0:00:10]} 55. Rd5 {[%clk 0:00:20]}  Re1+ {[%clk 0:00:09]} 56. Kf4 {[%clk 0:00:20]}  Rg1 {[%clk 0:00:10]} 57. Ke5 {[%clk 0:00:19]}  Kxh5 {[%clk 0:00:08]} 58. Kf6+ {[%clk 0:00:20]}  Kh6 {[%clk 0:00:08]} 59. Rd2 {[%clk 0:00:20]}  Kh7 {[%clk 0:00:07]} 60. f4 {[%clk 0:00:18]}  Kg8 {[%clk 0:00:06]} 61. Rd8+ {[%clk 0:00:18]}  Kh7 {[%clk 0:00:06]} 62. f5 {[%clk 0:00:18]}  Ra1 {[%clk 0:00:04]} 63. Rd7+ {[%clk 0:00:19]}  Kg8 {[%clk 0:00:04]} 64. Rd8+ {[%clk 0:00:17]}  Kh7 {[%clk 0:00:04]} 65. Re8 {[%clk 0:00:17]}  Rb1 {[%clk 0:00:03]} 66. Kf7 {[%clk 0:00:18]}  Rb2 {[%clk 0:00:01]} 67. f6 {[%clk 0:00:18]}  Rb7+ {[%clk 0:00:01]} 68. Re7 {[%clk 0:00:18]}  Rb6 {[%clk 0:00:02]} 69. Rc7 {[%clk 0:00:12]}  Rb8 {[%clk 0:00:01]} 70. Rd7 {[%clk 0:00:10]}  Kh8 {[%clk 0:00:00]} 71. Kg6 {[%clk 0:00:09]} 1-0


[Site "https://www.chess.com"]

[Event "Titled Tuesday Blitz May 30 Early 2023"]
[White "Bortnyk, Olexandr"]
[Black "Makaraci, Tunahan"]
[WhiteFideId "14120828"]
[BlackFideId "6356559"]
[WhiteElo "2734"]
[BlackElo "2160"]
[Result "1-0"]
[Round "07"]
[TimeControl "180+2"]
[Date "2023.05.30"]
[WhiteClock "0:02:10"]
[BlackClock "0:01:17"]

1. f3 {[%clk 0:02:58]}  b6 {[%clk 0:02:58]} 2. g4 {[%clk 0:02:59]}  Bb7 {[%clk 0:02:58]} 3. h4 {[%clk 0:02:59]}  e5 {[%clk 0:02:59]} 4. d3 {[%clk 0:02:59]}  d6 {[%clk 0:02:58]} 5. e4 {[%clk 0:02:59]}  Nd7 {[%clk 0:02:58]} 6. c4 {[%clk 0:02:59]}  Be7 {[%clk 0:02:58]} 7. h5 {[%clk 0:02:59]}  Bh4+ {[%clk 0:02:58]} 8. Ke2 {[%clk 0:02:59]}  Bg5 {[%clk 0:02:58]} 9. Nc3 {[%clk 0:02:59]}  Bxc1 {[%clk 0:02:58]} 10. Qxc1 {[%clk 0:03:00]}  h6 {[%clk 0:02:58]} 11. Nh3 {[%clk 0:03:00]}  Ngf6 {[%clk 0:02:52]} 12. b4 {[%clk 0:02:59]}  a5 {[%clk 0:02:52]} 13. a3 {[%clk 0:02:53]}  Nf8 {[%clk 0:02:44]} 14. b5 {[%clk 0:02:47]}  Ne6 {[%clk 0:02:42]} 15. Kf2 {[%clk 0:02:47]}  Nd7 {[%clk 0:02:26]} 16. Kg3 {[%clk 0:02:37]}  Ndc5 {[%clk 0:02:18]} 17. Qe3 {[%clk 0:02:36]}  Ng5 {[%clk 0:02:18]} 18. f4 {[%clk 0:02:31]}  Nxh3 {[%clk 0:02:17]} 19. Bxh3 {[%clk 0:02:32]}  Ne6 {[%clk 0:02:13]} 20. f5 {[%clk 0:02:29]}  Nd4 {[%clk 0:02:11]} 21. Ra2 {[%clk 0:02:28]}  Qg5 {[%clk 0:02:09]} 22. Qxg5 {[%clk 0:02:21]}  hxg5 {[%clk 0:02:10]} 23. Ne2 {[%clk 0:02:20]}  Ke7 {[%clk 0:01:47]} 24. Bg2 {[%clk 0:02:11]}  Kf6 {[%clk 0:01:47]} 25. Rf1 {[%clk 0:02:09]}  Rae8 {[%clk 0:01:28]} 26. Nxd4 {[%clk 0:02:09]}  exd4 {[%clk 0:01:28]} 27. e5+ {[%clk 0:02:10]}  Rxe5 {[%clk 0:01:23]} 28. Bxb7 {[%clk 0:02:10]}  Re4 {[%clk 0:01:17]} 29. Bxe4 {[%clk 0:02:10]} 1-0


[Site "https://www.chess.com"]

[Event "Titled Tuesday Blitz May 30 Early 2023"]
[White "Petrosyan, Manuel"]
[Black "Nasir, Zehn"]
[WhiteFideId "13300857"]
[BlackFideId "2613239"]
[WhiteElo "2576"]
[BlackElo "1993"]
[Result "1-0"]
[Round "07"]
[TimeControl "180+2"]
[Date "2023.05.30"]
[WhiteClock "0:00:06"]
[BlackClock "0:00:07"]

1. e4 {[%clk 0:03:00]}  c6 {[%clk 0:03:00]} 2. d4 {[%clk 0:03:00]}  d5 {[%clk 0:03:01]} 3. e5 {[%clk 0:03:01]}  Bf5 {[%clk 0:03:01]} 4. Nf3 {[%clk 0:03:01]}  e6 {[%clk 0:03:00]} 5. Be2 {[%clk 0:03:02]}  Ne7 {[%clk 0:02:59]} 6. O-O {[%clk 0:02:59]}  Nd7 {[%clk 0:03:00]} 7. Nbd2 {[%clk 0:02:54]}  c5 {[%clk 0:02:51]} 8. dxc5 {[%clk 0:02:45]}  Nxc5 {[%clk 0:02:40]} 9. Nd4 {[%clk 0:02:44]}  a6 {[%clk 0:02:36]} 10. N2f3 {[%clk 0:02:39]}  Bg6 {[%clk 0:02:32]} 11. Be3 {[%clk 0:02:37]}  Nc6 {[%clk 0:02:31]} 12. Nxc6 {[%clk 0:02:29]}  bxc6 {[%clk 0:02:30]} 13. c4 {[%clk 0:02:28]}  Be7 {[%clk 0:02:25]} 14. Rc1 {[%clk 0:02:25]}  Nd7 {[%clk 0:02:23]} 15. Qa4 {[%clk 0:02:18]}  c5 {[%clk 0:02:04]} 16. cxd5 {[%clk 0:02:05]}  exd5 {[%clk 0:02:04]} 17. Rfd1 {[%clk 0:02:03]}  d4 {[%clk 0:01:58]} 18. Bxd4 {[%clk 0:01:47]}  cxd4 {[%clk 0:01:53]} 19. Nxd4 {[%clk 0:01:47]}  O-O {[%clk 0:01:18]} 20. Nc6 {[%clk 0:01:47]}  Qe8 {[%clk 0:01:18]} 21. Bf3 {[%clk 0:01:08]}  Bf5 {[%clk 0:01:07]} 22. Nd4 {[%clk 0:00:28]}  Nxe5 {[%clk 0:00:49]} 23. Qxe8 {[%clk 0:00:29]}  Nxf3+ {[%clk 0:00:49]} 24. gxf3 {[%clk 0:00:28]}  Rfxe8 {[%clk 0:00:47]} 25. Nxf5 {[%clk 0:00:28]}  Bf6 {[%clk 0:00:46]} 26. Rc2 {[%clk 0:00:28]}  g6 {[%clk 0:00:43]} 27. Ng3 {[%clk 0:00:27]}  Rab8 {[%clk 0:00:40]} 28. b3 {[%clk 0:00:27]}  a5 {[%clk 0:00:41]} 29. Ne4 {[%clk 0:00:25]}  Bg7 {[%clk 0:00:40]} 30. Rc4 {[%clk 0:00:24]}  f5 {[%clk 0:00:36]} 31. Ng3 {[%clk 0:00:22]}  Red8 {[%clk 0:00:34]} 32. Rxd8+ {[%clk 0:00:12]}  Rxd8 {[%clk 0:00:35]} 33. Nf1 {[%clk 0:00:09]}  Rd1 {[%clk 0:00:34]} 34. Kg2 {[%clk 0:00:09]}  Ra1 {[%clk 0:00:31]} 35. Rc2 {[%clk 0:00:10]}  Kf7 {[%clk 0:00:25]} 36. Nd2 {[%clk 0:00:10]}  Rd1 {[%clk 0:00:24]} 37. Nc4 {[%clk 0:00:10]}  Rd5 {[%clk 0:00:23]} 38. Nb6 {[%clk 0:00:10]}  Rb5 {[%clk 0:00:20]} 39. Rc7+ {[%clk 0:00:10]}  Kg8 {[%clk 0:00:18]} 40. Nc4 {[%clk 0:00:09]}  Bf8 {[%clk 0:00:14]} 41. Rc8 {[%clk 0:00:05]}  Kg7 {[%clk 0:00:13]} 42. Rc7+ {[%clk 0:00:06]}  Kg8 {[%clk 0:00:13]} 43. Ra7 {[%clk 0:00:04]}  Bb4 {[%clk 0:00:13]} 44. Rd7 {[%clk 0:00:04]}  h5 {[%clk 0:00:11]} 45. h3 {[%clk 0:00:03]}  h4 {[%clk 0:00:11]} 46. f4 {[%clk 0:00:02]}  Rc5 {[%clk 0:00:10]} 47. Kf3 {[%clk 0:00:02]}  a4 {[%clk 0:00:10]} 48. Rb7 {[%clk 0:00:02]}  axb3 {[%clk 0:00:09]} 49. axb3 {[%clk 0:00:02]}  Be1 {[%clk 0:00:09]} 50. Re7 {[%clk 0:00:02]}  Bc3 {[%clk 0:00:08]} 51. Re6 {[%clk 0:00:02]}  Kf7 {[%clk 0:00:07]} 52. Rb6 {[%clk 0:00:03]}  Rd5 {[%clk 0:00:07]} 53. Ke2 {[%clk 0:00:03]}  Bd4 {[%clk 0:00:06]} 54. Rb7+ {[%clk 0:00:03]}  Kf8 {[%clk 0:00:06]} 55. Rb8+ {[%clk 0:00:03]}  Kf7 {[%clk 0:00:06]} 56. Rb7+ {[%clk 0:00:03]}  Kf8 {[%clk 0:00:06]} 57. Rb4 {[%clk 0:00:02]}  Bc5 {[%clk 0:00:06]} 58. Rb5 {[%clk 0:00:02]}  Ke7 {[%clk 0:00:04]} 59. Ne3 {[%clk 0:00:02]}  Bxe3 {[%clk 0:00:04]} 60. Rxd5 {[%clk 0:00:03]}  Bxf4 {[%clk 0:00:05]} 61. Rd4 {[%clk 0:00:03]}  Bg5 {[%clk 0:00:04]} 62. Rc4 {[%clk 0:00:03]}  Bf6 {[%clk 0:00:05]} 63. f3 {[%clk 0:00:04]}  Kd6 {[%clk 0:00:06]} 64. Kd3 {[%clk 0:00:03]}  Kd5 {[%clk 0:00:06]} 65. b4 {[%clk 0:00:04]}  g5 {[%clk 0:00:07]} 66. b5 {[%clk 0:00:04]}  g4 {[%clk 0:00:07]} 67. fxg4 {[%clk 0:00:05]}  fxg4 {[%clk 0:00:07]} 68. Rxg4 {[%clk 0:00:06]}  Bd8 {[%clk 0:00:07]} 69. Rd4+ {[%clk 0:00:06]}  Kc5 {[%clk 0:00:07]} 70. Rxd8 {[%clk 0:00:06]}  Kxb5 {[%clk 0:00:07]} 1-0


[Site "https://www.chess.com"]

[Event "Titled Tuesday Blitz May 30 Early 2023"]
[White "iHateNAJDORF"]
[Black "Molina, Roberto Junio Brito"]
[BlackFideId "2109450"]
[WhiteElo "2609"]
[BlackElo "2376"]
[Result "1-0"]
[Round "07"]
[TimeControl "180+2"]
[Date "2023.05.30"]
[WhiteClock "0:00:39"]
[BlackClock "0:01:11"]

1. c4 {[%clk 0:03:00]}  e5 {[%clk 0:02:58]} 2. Nc3 {[%clk 0:03:00]}  Nf6 {[%clk 0:02:58]} 3. Nf3 {[%clk 0:03:00]}  Nc6 {[%clk 0:02:57]} 4. d3 {[%clk 0:03:00]}  d5 {[%clk 0:02:57]} 5. cxd5 {[%clk 0:03:01]}  Nxd5 {[%clk 0:02:58]} 6. e4 {[%clk 0:03:01]}  Nb6 {[%clk 0:02:53]} 7. Be3 {[%clk 0:02:58]}  Be7 {[%clk 0:02:52]} 8. Be2 {[%clk 0:02:56]}  O-O {[%clk 0:02:51]} 9. O-O {[%clk 0:02:56]}  Bf6 {[%clk 0:02:51]} 10. a4 {[%clk 0:02:55]}  a5 {[%clk 0:02:50]} 11. Nb5 {[%clk 0:02:55]}  Bg4 {[%clk 0:02:49]} 12. Rc1 {[%clk 0:02:49]}  Re8 {[%clk 0:02:40]} 13. Qb3 {[%clk 0:02:45]}  Be6 {[%clk 0:02:37]} 14. Qc2 {[%clk 0:02:31]}  Rc8 {[%clk 0:02:33]} 15. Rfd1 {[%clk 0:02:25]}  Nb4 {[%clk 0:02:27]} 16. Qd2 {[%clk 0:01:42]}  c6 {[%clk 0:02:16]} 17. Bxb6 {[%clk 0:01:36]}  Qxb6 {[%clk 0:02:11]} 18. Nd6 {[%clk 0:01:37]}  Bb3 {[%clk 0:02:08]} 19. Re1 {[%clk 0:01:34]}  Bxa4 {[%clk 0:02:05]} 20. d4 {[%clk 0:01:23]}  exd4 {[%clk 0:01:59]} 21. Bc4 {[%clk 0:01:19]}  Rf8 {[%clk 0:01:49]} 22. e5 {[%clk 0:01:17]}  Be7 {[%clk 0:01:46]} 23. Nxc8 {[%clk 0:01:11]}  Rxc8 {[%clk 0:01:47]} 24. Nxd4 {[%clk 0:01:08]}  Rd8 {[%clk 0:01:27]} 25. Qf4 {[%clk 0:01:06]}  Nd5 {[%clk 0:01:28]} 26. Bxd5 {[%clk 0:01:02]}  Rxd5 {[%clk 0:01:28]} 27. Nf5 {[%clk 0:01:00]}  Bb4 {[%clk 0:01:27]} 28. Qg5 {[%clk 0:00:54]}  g6 {[%clk 0:01:23]} 29. Nh6+ {[%clk 0:00:48]}  Kg7 {[%clk 0:01:23]} 30. Ng4 {[%clk 0:00:43]}  Qd8 {[%clk 0:01:11]} 31. Qh6+ {[%clk 0:00:39]} 1-0


[Site "https://www.chess.com"]

[Event "Titled Tuesday Blitz May 30 Early 2023"]
[White "Fier, Alexandr"]
[Black "Ambartsumova, Karina"]
[WhiteFideId "2107139"]
[BlackFideId "4166299"]
[WhiteElo "2610"]
[BlackElo "2240"]
[Result "1-0"]
[Round "07"]
[TimeControl "180+2"]
[Date "2023.05.30"]
[WhiteClock "0:02:23"]
[BlackClock "0:00:11"]

1. d4 {[%clk 0:03:00]}  Nf6 {[%clk 0:02:59]} 2. Bg5 {[%clk 0:03:01]}  Ne4 {[%clk 0:02:55]} 3. h4 {[%clk 0:03:01]}  g6 {[%clk 0:02:48]} 4. Nd2 {[%clk 0:03:00]}  Nxg5 {[%clk 0:02:38]} 5. hxg5 {[%clk 0:03:00]}  d5 {[%clk 0:02:39]} 6. e3 {[%clk 0:02:59]}  Bg7 {[%clk 0:02:39]} 7. Qf3 {[%clk 0:02:58]}  c5 {[%clk 0:02:32]} 8. c3 {[%clk 0:02:58]}  Qd6 {[%clk 0:02:16]} 9. Ne2 {[%clk 0:02:56]}  Nc6 {[%clk 0:02:14]} 10. Nf4 {[%clk 0:02:55]}  e6 {[%clk 0:01:58]} 11. Bb5 {[%clk 0:02:56]}  Bd7 {[%clk 0:01:58]} 12. Nb3 {[%clk 0:02:55]}  cxd4 {[%clk 0:01:52]} 13. Nxd4 {[%clk 0:02:54]}  O-O-O {[%clk 0:00:50]} 14. O-O-O {[%clk 0:02:51]}  Kb8 {[%clk 0:00:46]} 15. Qg3 {[%clk 0:02:48]}  e5 {[%clk 0:00:32]} 16. Nxd5 {[%clk 0:02:44]}  Nxd4 {[%clk 0:00:26]} 17. Bxd7 {[%clk 0:02:25]}  Qxd7 {[%clk 0:00:26]} 18. Rxd4 {[%clk 0:02:23]}  Ka8 {[%clk 0:00:17]} 19. Nb6+ {[%clk 0:02:23]}  axb6 {[%clk 0:00:16]} 20. Rxd7 {[%clk 0:02:23]}  Rxd7 {[%clk 0:00:16]} 21. Qh4 {[%clk 0:02:23]}  h5 {[%clk 0:00:11]} 22. Qa4+ {[%clk 0:02:23]} 1-0


[Site "https://www.chess.com"]